Cogmind - Beta 17 @@@ ROGUE MODE // 2026.07.03 @ 22:26:47 Player: Polariusz Result: Smashed by cave-in Performance ------------- Evolutions (0) 0 Regions Visited (2) 400 Robots Destroyed (42) 210 Value Destroyed (899) 899 Prototype IDs (0) 0 Alien Tech Used (0) 0 Bonus (0) 0 TOTAL SCORE: 1509 Bonus ------- None Cogmind --------- Core Integrity 0/250 Matter 200/300 Energy 315/315 System Corruption 3% Temperature Cool (0) Movement Walking (190) Ox1 Location -10/Subcaves Parts ------- > --- POWER (1) -------- Neutrino Core > --- PROPULSION (2) --- Myomer Leg > --- UTILITY (2) ------ Large Storage Unit Visual Processing Unit > --- WEAPON (2) ------- Battle Cannon Bore Cannon > --- INVENTORY (15) --- Light Ion Engine Wheel Flight Unit Sensor Array Signal Interpreter Targeting Computer Armor Integrity Analyzer Scrap Shield Light Assault Rifle Grenade Launcher Grenade Launcher Grenade Launcher Grenade Launcher Hammer Peak State ------------ > --- POWER ------------ Neutrino Core > --- PROPULSION ------- Myomer Leg Myomer Leg > --- UTILITY ---------- Large Storage Unit Visual Processing Unit > --- WEAPON ----------- Battle Cannon Bore Cannon > --- INVENTORY -------- Light Ion Engine Wheel Flight Unit Sensor Array Signal Interpreter Targeting Computer Armor Integrity Analyzer Scrap Shield Light Assault Rifle Grenade Launcher Grenade Launcher Grenade Launcher Grenade Launcher Hammer [Rating: 32] Favorites ----------- Power Neutrino Core Engine Backup Power I Power Core Neutrino Core Propulsion Wheel Leg Myomer Leg Wheel Wheel Utility Large Storage Unit Storage Large Storage Unit Processor Visual Processing Unit Weapon Light Assault Rifle Ballistic Gun Light Assault Rifle Ballistic Cannon Battle Cannon Launcher Grenade Launcher Impact Weapon Hammer Build | -11 -10 -10 ------- Run | Yrd Mat Sub Slots Evolved . | . . . Power . | . . . Propulsion . | . . . Utility . | . . . Weapon . | . . . Parts Attached 29 | 5 17 7 Power 2 | . . 2 Engine 1 | . . 1 Core 1 | . . 1 Reactor . | . . . Propulsion 9 | 2 4 3 Treads . | . . . Leg 2 | . . 2 Wheel 7 | 2 4 1 Hover . | . . . Flight . | . . . Utility 5 | 1 4 . Device . | . . . Storage 3 | 1 2 . Processor 2 | . 2 . Hackware . | . . . Protection . | . . . Artifact . | . . . Weapon 13 | 2 9 2 Energy Gun . | . . . Energy Cannon . | . . . Ballistic Gun 6 | 2 4 . Ballistic Cannon 2 | . . 2 Launcher 4 | . 4 . Special Weapon . | . . . Impact Weapon 1 | . 1 . Slashing Weapon . | . . . Piercing Weapon . | . . . Special Melee Weapon . | . . . Unidentified Prototypes . | . . . Parts Lost 6 | . 5 1 Power 1 | . 1 . Propulsion 3 | . 2 1 Utility . | . . . Weapon 2 | . 2 . Highest Loss Streak 1 | . 1 1 To Critical Strikes . | . . . Average Backups 13 | 2 13 14 Power 1 | . 1 1 Propulsion 3 | 1 4 2 Utility 2 | . . 4 Weapon 5 | . 5 6 Tool/Special . | . . . Unused Backups 12 | . 2 10 Power 1 | . . 1 Propulsion 6 | . 2 4 Utility 5 | . . 5 Weapon . | . . . Tool/Special . | . . . Average Slot Usage (%) 94 | . 89 99 Engine 5 | . 7 2 Core 5 | . . 11 Leg 10 | . . 22 Wheel 16 | . 26 5 Storage 14 | . 14 14 Processor 13 | . 12 14 Ballistic Gun 17 | . 26 6 Ballistic Cannon 7 | . . 15 Impact Weapon 2 | . . 5 Peak Build Rating 32 | 5 8 32 Average Rating 15 | 3 7 25 On Entrance 4 | . 5 8 Avg Prop Armor Cover (%) . | . . . Naked Turns . | . . . Heaviest Build 46 | 7 26 46 Greatest Support 50 | 20 32 50 Greatest Overweight (x) 2 | . 2 . Average Overweight (x) . | . . . Largest Inventory Capacity 25 | 8 25 15 Average Capacity 14 | 7 14 15 Most Carried 15 | 5 15 15 Average Carried 13 | 2 13 14 Final Capacity 15 | 8 15 15 Final Carried 15 | 3 15 15 Class Distribution -------------------- 55% | Mutant 44% | Scavenger-Mutant Dominant Class ---------------- Mutant | -10/Materials Scavenger-Mutant | -10/Subcaves Resources | -11 -10 -10 ----------- Run | Yrd Mat Sub Matter Collected 1207 | 209 532 466 Remotely . | . . . Salvage Created 1161 | . 995 166 Parts 81 | . 64 17 Haulers Intercepted 1 | . 1 . Recyclers Shooed 3 | . 3 . Parts Field Recycled . | . . . Retrieved Matter . | . . . Parts Self-Destructed 7 | . . 7 Prevented 1 | . . 1 Parts Restored . | . . . Kills | -11 -10 -10 ------- Run | Yrd Mat Sub Combat Hostiles Destroyed 23 | . 14 9 Guns 10 | . 9 1 Cannons 4 | . . 4 AOE 9 | . 5 4 Classes Destroyed 11 | . 9 2 Worker 3 | . 3 . Builder 3 | . 3 . Tunneler 3 | . 3 . Hauler 1 | . 1 . Recycler 3 | . 3 . Operator 2 | . 2 . Turret 1 | . . 1 Watcher 3 | . 3 . Swarmer 7 | . 3 4 Grunt 11 | . 11 . Subdweller 5 | . . 5 Best Kill Streak 5 | . 5 4 Combat Bots Only 4 | . 4 4 Max Kills in Single Turn 4 | . 4 1 Gunslinging . | . . . Exploded 3 | . 3 1 Melee . | . . . Uniques/NPCs Destroyed . | . . . Combat | -11 -10 -10 -------- Run | Yrd Mat Sub Hostile Shots Fired 176 | . 69 107 Missed 71 | . 19 52 Hits 105 | . 50 55 Projectile 105 | . 50 55 Damage Taken 1355 | . 612 743 Core 277 | . 128 149 Absorbed by Shields . | . . . Regen/Repaired (Parts) 23 | . 23 . Core Remaining (%) 100 | 100 . . Volleys Fired 119 | . 91 28 Largest 2 | . 2 2 Hottest 81 | . 60 81 Shots Fired 237 | . 182 55 Gun 193 | . 178 15 Cannon 28 | . . 28 Launcher 16 | . 4 12 Special . | . . . Kinetic 221 | . 178 43 Thermal . | . . . Explosive 16 | . 4 12 Electromagnetic . | . . . Robot Hit Streak 15 | . 15 8 Robot Miss Streak 7 | . 7 4 Penetration Max . | . . . Secondary Targets 2 | . 2 . Max Gunslinging Chain 1 | . 1 . Shots Hit Robots 141 | . 107 34 Core Hits 76 | . 59 17 Critical Kills 2 | . . 2 Critical Parts Destroyed 4 | . 3 1 Critical Strikes 7 | . 3 4 Destroy 5 | . 2 3 Blast 1 | . . 1 Smash 1 | . 1 . Melee Attacks 23 | . 9 14 Impact 23 | . 9 14 Slashing . | . . . Piercing . | . . . Sneak Attacks 3 | . 3 . Combat Hostiles . | . . . Follow-up Attacks . | . . . Damage Inflicted 2403 | . 1455 948 Guns 910 | . 832 78 Cannons 313 | . . 313 Explosions 902 | . 345 557 Melee 278 | . 278 . Ramming . | . . . Kinetic 1223 | . 832 391 Thermal . | . . . Explosive 871 | . 314 557 Electromagnetic 31 | . 31 . Impact 278 | . 278 . Slashing . | . . . Piercing . | . . . Highest Corruption 2 | . 2 2 Average Corruption 2 | . 2 2 Corruption Purged . | . . . Corruption Blocked . | . . . Effects 18 | . 2 16 Message Errors 3 | . . 3 Matter Fused 6 | . . 6 Heat Flow Errors 1 | . . 1 Data Loss (minor) 6 | . 1 5 Alerts 1 | . 1 . Weapon Failures 1 | . . 1 Overload Shots . | . . . Overflow Damage 129 | . 126 3 Projectiles 3 | . . 3 Explosions 10 | . 10 . Melee 116 | . 116 . Knockbacks 4 | . . 4 Impact . | . . . Kinetic 3 | . . 3 Secondary 1 | . . 1 Self-Inflicted Damage 27 | . 9 18 Shots 3 | . 1 2 Rammed . | . . . Targets Rammed . | . . . Kicked . | . . . Crushed . | . . . Highest Temperature 136 | . 10 136 Average Temperature 11 | . 2 26 Received Heat Transfer 495 | . 267 228 Siege Activations . | . . . Martial Activations . | . . . Shielding Activations . | . . . Robots Disrupted . | . . . Combat Hostiles . | . . . Robots Corrupted 4 | . 4 . Combat Hostiles . | . . . Parts Fried 6 | . 4 2 Impact Corruptions 8 | . 7 1 Robots Melted . | . . . Combat Hostiles . | . . . Parts Melted . | . . . Heat Transferred . | . . . Parts Sabotaged . | . . . Parts Stolen . | . . . Parts Stripped . | . . . Power Chain Reactions . | . . . Alert | -11 -10 -10 ------- Run | Yrd Mat Sub Maximum Alert Level 1 | . 1 . Low Security (%) 77 | 100 76 . Level 1 22 | . 23 . Level 2 . | . . . Level 3 . | . . . Level 4 . | . . . Level 5 . | . . . High Security . | . . . Max Security . | . . . Peak Influence 239 | . 239 . Initial . | . . . Average 137 | . 141 . Influence Increases 835 | . 660 175 Destroy 0b10 Robot/C 380 | . 280 100 Destroy 0b10 Robot/NC 90 | . 90 . Destroy Leader 68 | . 68 . Successful Hack 30 | . 30 . Disable Machine 90 | . 90 . Destroy Structure 27 | . 27 . Partial Spotted 15 | . 15 . Lose Combat Pursuer 135 | . 60 75 Influence Decreases 818 | . 534 284 Entered New Map 62 | . . 62 Time Decay 696 | . 484 212 Lost Part 60 | . 50 10 Squads Dispatched 4 | . 4 . Investigation 2 | . 2 . Extermination . | . . . Reinforcement 2 | . 2 . Assault . | . . . Garrison . | . . . Intercept . | . . . Searches Triggered . | . . . Construction Impeded . | . . . Haulers Reinforced . | . . . Active Scanning Responses . | . . . Cargo Convoy Interrupts . | . . . Stealth | -11 -10 -10 --------- Run | Yrd Mat Sub Distress Signals 2 | . 2 . Communications Jammed . | . . . Distress Signals . | . . . Times Spotted 49 | . 32 17 Peak Tracking Total 6 | . 5 6 Tactical Retreats 8 | . 4 4 Traps | -11 -10 -10 ------- Run | Yrd Mat Sub Traps Triggered 6 | . 6 . Indirectly . | . . . Trap Hack Attempts . | . . . Triggered . | . . . Disarmed . | . . . Reprogrammed . | . . . Reused . | . . . Traps Extracted . | . . . Installed . | . . . Triggered . | . . . Machines | -11 -10 -10 ---------- Run | Yrd Mat Sub Machines Disabled 8 | . 6 2 Max in Single Turn 2 | . 2 1 Machines Repaired . | . . . Machines Dismantled . | . . . Machines Sabotaged . | . . . Overloaded Fab Kills . | . . . Hacking | -11 -10 -10 --------- Run | Yrd Mat Sub Machines Accessed 7 | . 7 . Terminals 5 | . 5 . Fabricators . | . . . Repair Stations 1 | . 1 . Recycling Units 1 | . 1 . Scanalyzers . | . . . Garrison Access . | . . . Total Hacks 28 | . 28 . Successful 19 | . 19 . Failed 9 | . 9 . Catastrophic 1 | . 1 . Database Lockouts . | . . . Manual 15 | . 15 . Terminals 19 | . 19 . Fabricators . | . . . Repair Stations 6 | . 6 . Recycling Units 3 | . 3 . Scanalyzers . | . . . Garrison Access . | . . . Terminal Hacks 5 | . 5 . Robot Analysis 1 | . 1 . Alert Level 1 | . 1 . Locate Traps 1 | . 1 . Dispatch Records 1 | . 1 . Registered Prototypes 1 | . 1 . Fabricator Hacks . | . . . Repair Station Hacks 3 | . 3 . Scan Component 1 | . 1 . Repair 1 | . 1 . Refit 1 | . 1 . Recycling Unit Hacks 1 | . 1 . Retrieve Components 1 | . 1 . Scanalyzer . | . . . Garrison Access Hacks . | . . . Unauthorized Hacks 10 | . 10 . Terminals 9 | . 9 . Track 4 | . 4 . Botnet 5 | . 5 . Fabricators . | . . . Repair Stations . | . . . Recycling Units 1 | . 1 . Mask 1 | . 1 . Scanalyzers . | . . . Garrison Access . | . . . Data Cores Recovered . | . . . Used . | . . . Hacking Detections 5 | . 5 . Full Trace Events 2 | . 2 . Feedback Events . | . . . Feedback Blocked . | . . . Robot Schematics Acquired . | . . . Robots Built . | . . . Authchips . | . . . Time . | . . . Total Robot Build Rating . | . . . Part Schematics Acquired . | . . . Parts Built . | . . . Authchips . | . . . Time . | . . . Total Part Build Rating . | . . . Part Studies Acquired . | . . . Parts Repaired 1 | . 1 . Time 26 | . 26 . Parts Recycled . | . . . Recycled Matter . | . . . Retrieved Matter . | . . . Retrieved Components . | . . . Parts Scanalyzed . | . . . Part Schematics Acquired . | . . . Parts Damaged . | . . . Bothacking | -11 -10 -10 ------------ Run | Yrd Mat Sub Used RIF Installer . | . . . Robots Hacked . | . . . Non-combat . | . . . Combat . | . . . Robot Hacks Applied . | . . . Relay Couplers Released . | . . . Fabnet Peak Effective % . | . . . Robots Rewired . | . . . Allies Hacked . | . . . Hacks Repelled . | . . . Allies | -11 -10 -10 -------- Run | Yrd Mat Sub Total Allies . | . . . Largest Group . | . . . Highest-Rated Group . | . . . Highest-Rated Ally . | . . . Total Orders . | . . . Ally Attacks . | . . . Total Damage . | . . . Kills . | . . . Allies Corrupted . | . . . Allies Melted . | . . . Intel | -11 -10 -10 ------- Run | Yrd Mat Sub Active Infowar (turns) 1600 | . 270 1330 Optics 1600 | . 270 1330 Robot Analysis Total 1 | . 1 . Derelict Logs Recovered 1 | . . 1 Drone Launches . | . . . Drone Recoveries . | . . . Exploration | -11 -10 -10 ------------- Run | Yrd Mat Sub Turns Passed 2939 | 44 1566 1329 Spaces Moved 1935 | 43 903 989 Core 12 | 12 . . Treads . | . . . Legs 800 | . . 800 Wheels 1123 | 31 903 189 Hover . | . . . Flight . | . . . Fastest Speed 50 | 50 80 90 Average Speed 103 | 71 94 114 Slowest Speed 120 | 80 115 120 Overloaded Moves . | . . . Propulsion Burnouts . | . . . Robots Hopped . | . . . Potential Cave-ins . | . . . Cave-ins Triggered 1 | . . 1 Exploration Rate (%) 51 | 4 99 52 Regions Visited 2 Branch Regions 1 Pre-discovered Areas . | . . . Known Exits Taken . | . . . Unknown Exits Taken 2 | 1 1 . Scrap Searched 5 | . . 5 Spaces Dug 3 | . . 3 Terrain Destroyed 74 | . 31 43 Melee 3 | . . 3 Projectile 1 | . . 1 AOE 70 | . 31 39 Terrain Rammed . | . . . Walls Destroyed . | . . . Machines Disabled . | . . . Actions | -11 -10 -10 --------- Run | Yrd Mat Sub Total 2608 | 55 1450 1103 Wait 423 | . 388 35 Move 1933 | 42 902 989 Hop . | . . . Pick Up 36 | 8 24 4 Fast Attach 10 | . 4 6 Attach 12 | 5 6 1 Detach . | . . . Swap 35 | . 19 16 Drop 17 | . 7 10 Fire 119 | . 91 28 Melee 23 | . 9 14 Ram . | . . . Kick . | . . . Crush . | . . . Escape Stasis . | . . . Rewire . | . . . Trap . | . . . Miscellaneous . | . . . Route ------- -11/Scrapyard -10/Materials (discovered 6 exits: [*Mat x3] / [*Min x2] / [*Sub]) -10/Subcaves (discovered 1 exit: [*Rec]) History --------- Turn | Location | Event 3 | -11/Scrapyard | Discovered new exit (range 16) 45 | -11/Scrapyard | Entered Materials 302 | -10/Materials | Build established: Mutant 337 | -10/Materials | Discovered new exit (range 6) 501 | -10/Materials | Repaired Com. Wheel? 741 | -10/Materials | Discovered new exit (range 14) 820 | -10/Materials | Core integrity fell below 50% 858 | -10/Materials | Discovered new exit (range 15) 1310 | -10/Materials | Discovered new exit (range 12) 1376 | -10/Materials | Discovered new exit (range 18) 1456 | -10/Materials | Discovered new exit (range 5) 1611 | -10/Materials | Entered Subcaves 1817 | -10/Subcaves | Learned Materials stockpile data 1825 | -10/Subcaves | Disturbed a concealed Subdweller 1926 | -10/Subcaves | Build established: Scavenger-Mutant 2083 | -10/Subcaves | Shifting Twisted Machinery released Mak. Hacking Suite 2099 | -10/Subcaves | Shifting Twisted Machinery released Flamer 2403 | -10/Subcaves | Discovered new exit (range 16) 2441 | -10/Subcaves | Core integrity fell below 20% 2941 | -10/Subcaves | Crushed by falling debris 2941 | -10/Subcaves | Smashed by cave-in Last Messages --------------- 02585_ Acquired 54 matter. 02597_ System corrupted: Component data lost. 02707_ System corrupted: Matter fused (-7). 02808_ Acquired 2 matter. 02812_ Acquired 28 matter. 02813_ Acquired 34 matter. 02824_ System corrupted: Matter fused (-6). 02894_ JK-626(u) deconstructs Twisted Machinery. 02916_ System corrupted: Heat flow error (+169). 02925_ WX-DWV(R) destroyed. 02928_ JS-G28(R) affixes Scrap Shield Fragment to Scrap Shield. 02931_ JS-G28(R) destroyed. 02940_ Acquired 7 matter. 02941_ The unstable cave ceiling collapses. 02941_ Crushed by falling debris. 02941_ Myomer Leg destroyed. 02941_ System corrupted by crushing effect (+1). Map ----- +----------------------------------------------------+ | ??????????# #?? #??????????????????????????????? | | ????????## ## ##?????????????????????????????? | | ???????## #?????????????????????????????? | | ??????## #?????????????????????????????? | | ??????# #?????????????????????????????? | | ??????## # ??????????????????????? | | ???????# ##???? #?????????????##??????????? | | ???????# ##???????? #????????????? ??????????? | | ???????# #????????????????????????? ??????????? | | ???????# = #????????????????????????? "??????????? | | ??????## ##??? ???????????????????? """????????? | | ??????# ##??? ???????????????????# ""?????????? | | ??????# #??? ?????????##????????#"" ?????????? | | ??###?# ##???? ??????? #???????## "#?????????? | | ## ## ###?????# ?????? ##??????# #?????????? | | #???????# ?????? ##?????# ##?????### | | ###??????# ????? #?##### ##??# | | # ### ## ######## #????"" ??? ""## | | ??## ## ####"""????? " | | ??# ## #??????# " ????? | | ??## ## #?? # #??????# #?????????? | | ??# ####" #???? #?????###" ###???????? | | ??## ??## #???### ""####?##" "" "" ##??????? | | ???#### ## #???# ###""" " #??###?? | | ???????# ##??# ### "##" #### ##? | | ???????### %% #### &*@ ## "###" #? | | ?????????# % ## ## ###?## #? | | ?????????# *%% % ### ! ###????# #? | | ?????????## "####?# ###??????## #? | | ??????????## "#????# ##????????## ## | | ??????????# #????## #????????## | | ??????????## #"#?????## ##??# ???## ## | | ???????????## ##??????# ####??? #??# ## | | ????????????# ##?????# #?????? #??## | | ????????????# # ##????# ##???## #?##### | | ????????????#### ###### ##?# ## #### | | ???????????????## # ## # | | ????????????????# ### | | ????????????????### #? #?# ### | | ??????????????????#### ##?# ## #### | | ?????????????????????## #?## ## #??# | | ????????????????????### #### ### ###??## | | ???????????????????## ##????## ##???# | | ???????????????????# ##?????# #???## | | ???????????????????# #??????# #????## | | ???????????????????## ###????# #????### | | ????????????????????## ####?# #????# | | ?????????????????????# ##### #????## | | ?????????????????????# ##?# ###???# | | ?????????????????????## ### #???# # | +----------------------------------------------------+ Best States ------------- Heat Dissipation 25 Energy Generation 19 Energy Capacity 315 Matter Stores 300 Matter Capacity 300 Sight Range 18 Terrain Scan Density 10 Evasion (%) 55 Targeting Accuracy 5 Item Schematics ----------------- None Robot Schematics ------------------ None Fabricated ------------ Nothing Repaired ---------- Com. Wheel | 23% | -10/Materials Studied --------- None Alien Tech Used ----------------- None Achievements -------------- Bumper Bots Fitting Room Challenges ------------ None Game ------ Seed GodTargetExtrapolator Manual? 0 Play Time 00:28:04 Cumulative 64.3 hours Start 2026.07.03 @ 21:59:07 End 2026.07.03 @ 22:26:47 Sessions 1 Manual Loads 0 Difficulty Rogue Special Mode None Game No. 68 Rogue 68 Adventurer 0 Explorer 0 Win Type - Total 2 Types 2/0/0/0/0/0/0/0/0/0 Lore% 47 Gallery% 32 Achievement% 23 Wizard Run 0 Options --------- Layout 1 ASCII 0 Keyboard 0 Movement Mouse Keybinds 0 Fullscreen 1 Font 24/Smallcaps Map View 50x35 Zoom Use 0% Tactical HUD 1 Map Filters NONE Filters NONE Steam 1 RUN: 43a1c7c8-8923-46db-863d-87d9c7934705